bitfinex/quotes_BTCUSD_20250617
["timestamp","ask_amount","ask_price","bid_price","bid_amount"]
[1750201780617,0.34038706,104620.0,104610.0,0.234404]
[1750201780858,0.34038706,104620.0,104610.0,0.49060576]
[1750201781079,0.34994518,104620.0,104610.0,0.53328576]
[1750201781524,0.34038706,104620.0,104610.0,0.53328576]
[1750201781747,0.34994527,104620.0,104610.0,0.53328576]
[1750201781994,0.34038706,104620.0,104610.0,0.53328576]
[1750201782449,0.33082903,104620.0,104610.0,0.61264506]
[1750201782684,0.33082903,104620.0,104610.0,0.61664506]
[1750201782897,0.00670029,104620.0,104610.0,0.61664506]
[1750201783108,0.01625805,104620.0,104610.0,0.61664506]
[1750201783801,0.01625805,104620.0,104610.0,0.61964506]
[1750201784253,0.03537411,104620.0,104610.0,0.61964506]
[1750201784469,0.03537402,104620.0,104610.0,0.61964506]
[1750201784682,0.02581599,104620.0,104610.0,0.61964506]
[1750201784894,0.01625805,104620.0,104610.0,0.61964506]
[1750201785107,0.02581599,104620.0,104610.0,0.61964506]
[1750201785259,0.01625805,104620.0,104610.0,0.61964506]
[1750201786555,0.25777127,104620.0,104610.0,0.61964506]
[1750201787592,0.01625805,104620.0,104610.0,0.61964506]
[1750201787787,0.00670029,104620.0,104610.0,0.61964506]
[1750201788509,0.01625796,104620.0,104610.0,0.61964506]
[1750201789521,0.00670029,104620.0,104610.0,0.61964506]
[1750201789989,0.24821351,104620.0,104610.0,0.61964506]
[1750201793331,0.25107079,104620.0,104610.0,0.61964506]
[1750201794634,0.32141253,104630.0,104620.0,0.23438325]
[1750201794867,0.58140042,104630.0,104620.0,0.41507192]
[1750201795079,0.54330943,104630.0,104620.0,0.41507192]
[1750201795501,0.54330949,104630.0,104620.0,0.41507192]
[1750201795709,0.3330448,104630.0,104620.0,0.42462968]
[1750201795926,0.3330448,104630.0,104620.0,0.42662968]
[1750201796149,0.3330448,104630.0,104620.0,0.42762968]
[1750201797014,0.33305436,104630.0,104620.0,0.42762968]
[1750201797452,0.52420412,104630.0,104620.0,0.42762968]
[1750201797702,0.34261175,104630.0,104620.0,0.47030968]
[1750201797944,0.53376151,104630.0,104620.0,0.47030968]
[1750201798160,0.54331899,104630.0,104620.0,0.37630501]
[1750201799293,0.34261175,104630.0,104620.0,0.38586277]
[1750201799789,0.36046004,104630.0,104620.0,0.38586277]
[1750201800337,0.55160977,104630.0,104620.0,0.38586277]
[1750201800579,0.56093364,104630.0,104620.0,0.38586277]
[1750201800809,0.56093364,104630.0,104620.0,0.42719109]
[1750201801639,0.31941086,104630.0,104620.0,0.42719109]
[1750201801848,0.56093364,104630.0,104620.0,0.42719109]
[1750201802676,0.56095152,104630.0,104620.0,0.42719109]
[1750201803738,0.56095152,104630.0,104620.0,0.37630501]
[1750201803938,0.56095152,104630.0,104620.0,0.37630519]
[1750201804516,0.56095152,104630.0,104620.0,0.38586313]
[1750201805328,0.5609506,104630.0,104620.0,0.38586313]
[1750201805559,0.55139357,104630.0,104620.0,0.38586313]
[1750201805772,0.55139357,104630.0,104620.0,0.34318313]
[1750201805978,0.55139357,104630.0,104620.0,0.38586313]
[1750201806863,0.54207047,104630.0,104620.0,0.37630519]
[1750201807276,0.54207047,104630.0,104620.0,0.36674716]
[1750201807482,0.53251308,104630.0,104620.0,0.36674716]
[1750201808337,0.5325347,104630.0,104620.0,0.36674716]
[1750201809630,0.53253509,104630.0,104620.0,0.36674716]
[1750201810496,0.52297761,104630.0,104620.0,0.35718904]
[1750201810742,0.76450039,104630.0,104620.0,0.35718904]
[1750201810966,0.52297761,104630.0,104620.0,0.35718904]
[1750201811183,0.76450039,104630.0,104620.0,0.36674735]
[1750201812065,0.52297761,104630.0,104620.0,0.36674735]
[1750201812286,0.52297761,104630.0,104620.0,0.15646261]
[1750201812508,0.26358465,104630.0,104620.0,0.15626261]
[1750201812746,0.76450183,104630.0,104620.0,0.15626261]
[1750201812982,0.78737842,104630.0,104620.0,0.15626261]
[1750201813217,0.78737842,104630.0,104620.0,0.09924176]
[1750201813437,0.78737842,104630.0,104620.0,0.003]
[1750201813438,1.1885012,104630.0,104620.0,0.003]
[1750201813656,1.21695996,104630.0,104620.0,0.003]
[1750201814321,1.21695996,104630.0,104620.0,0.002]
[1750201814771,0.26332624,104620.0,104610.0,0.04248]
[1750201815015,0.77317831,104620.0,104610.0,0.13872176]
[1750201815249,0.7960549,104620.0,104610.0,0.13872176]
[1750201815478,0.75530669,104620.0,104610.0,0.19946227]
[1750201815706,0.92442481,104620.0,104610.0,0.3577278]
[1750201815939,0.76486481,104620.0,104610.0,0.41474865]
[1750201816169,0.92442481,104620.0,104610.0,0.42430778]
[1750201816398,0.92442481,104620.0,104610.0,0.42630778]
[1750201816637,0.92442481,104620.0,104610.0,0.42730778]
[1750201816918,0.43244436,104620.0,104610.0,0.42730778]
[1750201817142,0.67404645,104620.0,104610.0,0.42730778]
[1750201817852,0.46844268,104620.0,104610.0,0.42730778]
[1750201818047,0.65961071,104620.0,104610.0,0.38482778]
[1750201818331,0.66916892,104620.0,104610.0,0.41774865]
[1750201818787,0.66916892,104620.0,104610.0,0.42730778]
[1750201819451,0.66916892,104620.0,104610.0,0.38482778]
[1750201819675,0.66916892,104620.0,104610.0,0.43686682]
[1750201820310,0.66916892,104620.0,104610.0,0.42730778]
[1750201820952,0.66916892,104620.0,104610.0,0.36656727]
[1750201821170,0.66916892,104620.0,104610.0,0.33364631]
[1750201821171,0.42756683,104620.0,104610.0,0.33364631]
[1750201821391,0.42756683,104620.0,104610.0,0.37612631]
[1750201821626,0.66916892,104620.0,104610.0,0.37612631]
[1750201823442,0.66912892,104620.0,104610.0,0.34744892]
[1750201823670,0.66912892,104620.0,104610.0,0.15626261]
[1750201825717,0.91073101,104620.0,104610.0,0.14172176]
[1750201826016,0.96030762,104620.0,104610.0,0.04548]
[1750201826901,0.96030762,104620.0,104610.0,0.003]
[1750201827559,0.96030663,104620.0,104610.0,0.003]
[1750201828003,0.96029164,104620.0,104610.0,0.003]
[1750201828577,0.9335568,104620.0,104610.0,0.003]
[1750201829503,0.96029145,104620.0,104610.0,0.003]
[1750201829734,1.16029145,104620.0,104610.0,0.003]
[1750201829942,1.18884289,104620.0,104610.0,0.003]
[1750201830137,1.52884289,104620.0,104610.0,0.003]
[1750201830338,1.67884289,104620.0,104610.0,0.003]
[1750201830660,1.67884289,104620.0,104610.0,0.002]
[1750201830872,1.67884289,104620.0,104600.0,0.27216]
[1750201830873,0.26544544,104610.0,104600.0,0.27216]
[1750201831089,0.74864962,104610.0,104600.0,0.22968]
[1750201831302,0.74864962,104610.0,104600.0,0.27216]
[1750201831513,0.25590458,104600.0,104590.0,0.05702085]
[1750201831723,0.65694667,104600.0,104590.0,0.04248]
[1750201832374,0.02868479,104580.0,104570.0,0.32027]
[1750201832589,0.02868479,104580.0,104570.0,0.21511668]
[1750201832590,0.6935688,104580.0,104570.0,0.21511668]
[1750201832806,0.6935688,104580.0,104570.0,0.22965753]
[1750201833036,0.7251688,104580.0,104570.0,0.22965753]
[1750201833241,0.51478342,104580.0,104570.0,0.21511668]
[1750201833474,0.51478342,104580.0,104570.0,0.22965753]
[1750201833895,0.51478342,104580.0,104570.0,0.23365753]
[1750201834316,0.51478342,104580.0,104570.0,0.23965753]
[1750201834749,0.51478342,104580.0,104570.0,0.19717753]
[1750201834958,0.51478342,104580.0,104570.0,0.23965753]
[1750201835162,0.48318342,104580.0,104570.0,0.44047994]
[1750201835620,0.45196671,104580.0,104570.0,0.45004272]
[1750201835844,0.21036462,104580.0,104570.0,0.558593]
[1750201836076,0.45196671,104580.0,104570.0,0.558593]
[1750201838726,0.45196671,104580.0,104570.0,0.46916801]
[1750201839200,0.37936153,104590.0,104580.0,0.20080302]
[1750201839449,0.62096362,104590.0,104580.0,0.29704478]
[1750201839656,0.62096362,104590.0,104580.0,0.30660647]
[1750201840086,0.61140285,104590.0,104580.0,0.29704478]
[1750201840556,0.61140285,104590.0,104580.0,0.30004478]
[1750201840790,0.6018018,104590.0,104580.0,0.09924176]
[1750201841000,0.65424066,104590.0,104580.0,0.10324176]
[1750201841683,0.65424066,104590.0,104580.0,0.04932]
[1750201847813,0.65424066,104590.0,104580.0,0.05667665]
[1750201848933,0.59220066,104590.0,104580.0,0.21515985]
[1750201849148,0.59220066,104590.0,104580.0,0.37685956]
[1750201849361,0.59220066,104590.0,104580.0,0.40995956]
[1750201850802,0.59220066,104590.0,104580.0,0.40260291]
[1750201851363,0.59220066,104590.0,104580.0,0.41216496]
[1750201851605,0.15936,104590.0,104580.0,0.41216496]
[1750201851816,0.40096209,104590.0,104580.0,0.41216496]
[1750201852026,0.5922016,104590.0,104580.0,0.41216496]
[1750201852455,0.5922016,104590.0,104580.0,0.48542577]
[1750201852884,0.35059951,104590.0,104580.0,0.49498773]
[1750201853111,0.5922016,104590.0,104580.0,0.49498773]
[1750201855454,0.4328416,104590.0,104580.0,0.49498773]
[1750201855665,0.5921616,104590.0,104580.0,0.49498773]
[1750201856058,0.5921616,104590.0,104580.0,0.21882257]
[1750201856267,0.5921616,104590.0,104580.0,0.14556176]
[1750201856483,0.6544616,104590.0,104580.0,0.14556176]
[1750201857538,0.36008056,104590.0,104580.0,0.33680291]
[1750201857754,0.60168265,104590.0,104580.0,0.41126478]
[1750201857959,0.60168265,104590.0,104580.0,0.33680291]
[1750201858170,0.60168265,104590.0,104580.0,0.40234848]
[1750201858384,0.60168265,104590.0,104580.0,0.41191053]
[1750201859128,0.60168265,104590.0,104580.0,0.21110733]
[1750201859592,0.60168265,104590.0,104580.0,0.40234848]
[1750201859892,0.60168265,104590.0,104580.0,0.21110733]
[1750201860861,0.5921216,104590.0,104580.0,0.21110733]
[1750201862740,0.61497261,104590.0,104580.0,0.14556176]
[1750201862956,0.68057261,104590.0,104580.0,0.14556176]
[1750201867046,0.68057261,104590.0,104580.0,0.007]
[1750201867047,1.2621747,104590.0,104580.0,0.007]
[1750201867286,0.9625648,104580.0,104570.0,0.00014272]
[1750201867504,1.68065835,104580.0,104570.0,0.00014272]
[1750201867757,1.70920979,104580.0,104570.0,0.00014272]
[1750201867993,1.67396062,104580.0,104570.0,0.00014272]
[1750201868684,1.64540376,104580.0,104570.0,0.00014272]
[1750201870218,1.64538306,104580.0,104570.0,0.00014272]
[1750201870927,1.63647688,104580.0,104570.0,0.00014272]
[1750201871200,1.64538175,104580.0,104570.0,0.00014272]
[1750201871646,1.62752486,104580.0,104570.0,0.00014272]
[1750201872995,0.82351188,104550.0,104540.0,0.31568114]
[1750201873217,0.46159105,104550.0,104540.0,0.52797282]
[1750201873407,0.45202708,104550.0,104540.0,0.52797282]
[1750201874130,0.21042499,104550.0,104540.0,0.53097282]
[1750201874350,0.45202708,104550.0,104540.0,0.53097282]
[1750201874567,0.45202708,104550.0,104540.0,0.53497282]
[1750201875236,0.45202708,104550.0,104540.0,0.54453817]
[1750201876406,0.45202708,104550.0,104540.0,0.53497282]
[1750201876594,0.44246283,104550.0,104540.0,0.52540738]
[1750201876845,0.41028763,104550.0,104540.0,0.52540738]
[1750201877458,0.41985234,104550.0,104540.0,0.52540738]
[1750201878417,0.41985234,104550.0,104540.0,0.54453817]
[1750201878649,0.41985234,104550.0,104540.0,0.53497282]
[1750201878875,0.42941686,104550.0,104540.0,0.53497282]
[1750201879351,0.23812037,104550.0,104540.0,0.54453807]
[1750201879566,0.24768508,104550.0,104540.0,0.54453817]
[1750201879783,0.24768508,104550.0,104540.0,0.54453753]
[1750201881807,0.44854591,104550.0,104540.0,0.44199184]
[1750201882455,0.22955431,104550.0,104540.0,0.44199184]
[1750201882681,0.4711564,104550.0,104540.0,0.44199184]
[1750201882890,0.4711564,104550.0,104540.0,0.45155719]
[1750201884855,0.4711564,104550.0,104540.0,0.41975719]
[1750201885319,0.4711564,104550.0,104540.0,0.54509235]
[1750201885828,0.4711564,104550.0,104540.0,0.45702198]
[1750201886052,0.4711564,104550.0,104540.0,0.45902198]
[1750201886283,0.27986037,104550.0,104540.0,0.45902198]
[1750201886977,0.4711564,104550.0,104540.0,0.45502198]
[1750201887204,0.4711564,104550.0,104540.0,0.45702198]
[1750201887674,0.4711564,104550.0,104540.0,0.53576649]
[1750201888804,0.4711564,104550.0,104540.0,0.50707073]
[1750201889050,0.4711564,104550.0,104540.0,0.49750529]
[1750201889243,0.46159215,104550.0,104540.0,0.50707073]
[1750201889490,0.45202763,104550.0,104540.0,0.49750529]
[1750201889726,0.45202763,104550.0,104540.0,0.41876078]
[1750201890847,0.45202726,104550.0,104540.0,0.43789138]
[1750201891073,0.45202726,104550.0,104540.0,0.43789157]
[1750201891292,0.45202726,104550.0,104540.0,0.44745682]
[1750201891952,0.45202726,104550.0,104540.0,0.51406313]
[1750201893950,0.44246283,104550.0,104540.0,0.51406313]
[1750201894450,0.44246283,104550.0,104540.0,0.50449769]
[1750201894945,0.43289812,104550.0,104540.0,0.50449769]
[1750201896555,0.43289812,104550.0,104540.0,0.51406313]
[1750201896783,0.43289812,104550.0,104540.0,0.52362848]
[1750201897532,0.43289812,104550.0,104540.0,0.51406313]
[1750201898820,0.43289812,104550.0,104540.0,0.52362848]
[1750201900533,0.43289812,104550.0,104540.0,0.53319373]
[1750201900767,0.22802766,104560.0,104550.0,0.21540159]
[1750201900998,0.44244361,104560.0,104550.0,0.24968552]
[1750201901302,0.47113416,104560.0,104550.0,0.47923983]
[1750201901515,0.26072885,104560.0,104550.0,0.64776399]
[1750201901733,0.27029255,104560.0,104550.0,0.64776399]
[1750201901959,0.27029255,104560.0,104550.0,0.64776408]
[1750201902189,0.47113416,104560.0,104550.0,0.55573276]
[1750201902413,0.46157092,104560.0,104550.0,0.47160335]
[1750201903039,0.46157092,104560.0,104550.0,0.48116796]
[1750201903249,0.46157092,104560.0,104550.0,0.49073276]
[1750201903976,0.4520074,104560.0,104550.0,0.49073276]
[1750201904627,0.46157092,104560.0,104550.0,0.50029728]
[1750201905923,0.46157092,104560.0,104550.0,0.49073276]
[1750201907166,0.4520074,104560.0,104550.0,0.11178261]
[1750201907375,0.5058437,104560.0,104550.0,0.15382261]
[1750201907841,0.02869,104560.0,104550.0,0.37308492]
[1750201907980,0.02868972,104560.0,104550.0,0.49845351]
[1750201908791,0.03825342,104560.0,104550.0,0.49845351]
[1750201908996,0.03825333,104560.0,104550.0,0.49845351]
[1750201909419,0.02868972,104560.0,104550.0,0.52532857]
[1750201911117,0.02868972,104560.0,104550.0,0.49845351]
[1750201911340,0.0191263,104560.0,104550.0,0.49845351]
[1750201911559,0.43731935,104570.0,104560.0,0.21996855]
[1750201911777,0.61063754,104570.0,104560.0,0.37753273]
[1750201912219,0.61063754,104570.0,104560.0,0.47300034]
[1750201912220,0.16821231,104570.0,104560.0,0.47300034]
[1750201912641,0.13952487,104570.0,104560.0,0.87348243]
[1750201912850,0.13952487,104570.0,104560.0,0.92348243]
[1750201913499,0.14152487,104570.0,104560.0,0.92348243]
[1750201913716,0.14052487,104570.0,104560.0,0.92348243]
[1750201914158,0.13952487,104570.0,104560.0,0.92548243]
[1750201914374,0.13952487,104570.0,104560.0,0.92748243]
[1750201914996,0.13952487,104570.0,104560.0,0.68588034]
[1750201915457,0.13952487,104570.0,104560.0,0.65699459]
[1750201919008,0.14908701,104570.0,104560.0,0.65699459]
[1750201919238,0.15864934,104570.0,104560.0,0.65699459]
[1750201919908,0.16821185,104570.0,104560.0,0.65699459]
[1750201920421,0.15864934,104570.0,104560.0,0.65699459]
[1750201920881,0.16821185,104570.0,104560.0,0.65699459]
[1750201921112,0.15864934,104570.0,104560.0,0.65699459]
[1750201921693,0.15864934,104570.0,104560.0,0.75314381]
[1750201922180,0.14908701,104570.0,104560.0,0.75314381]
[1750201922397,0.14908701,104570.0,104560.0,0.55226381]
[1750201922621,0.14908701,104570.0,104560.0,0.75310381]
[1750201923292,0.13952487,104570.0,104560.0,0.75310381]
[1750201923509,0.13952487,104570.0,104560.0,0.9947059]
[1750201925752,0.13952487,104570.0,104560.0,0.75310381]
[1750201930966,0.44140591,104590.0,104580.0,0.21036462]
[1750201931184,0.4415485,104590.0,104580.0,0.34917741]
[1750201931884,0.86295024,104590.0,104580.0,0.35873891]
[1750201932101,0.87251138,104590.0,104580.0,0.34917741]
[1750201932331,0.87251138,104590.0,104580.0,0.34917759]
[1750201932556,0.87451138,104590.0,104580.0,0.35873928]
[1750201933492,0.87551138,104590.0,104580.0,0.40061928]
[1750201934167,0.8659507,104590.0,104580.0,0.35804825]
[1750201936405,0.8659507,104590.0,104580.0,0.36760985]
[1750201936837,0.8659507,104590.0,104580.0,0.35804825]
[1750201937104,0.8659507,104590.0,104580.0,0.34848656]
[1750201937759,0.8659507,104590.0,104580.0,0.35804825]
[1750201939710,0.8659507,104590.0,104580.0,0.36760985]
[1750201939923,0.8659507,104590.0,104580.0,0.43305665]
[1750201941679,0.8659507,104590.0,104580.0,0.42349515]
[1750201942019,0.8659507,104590.0,104580.0,0.34848656]
[1750201942664,0.8659507,104590.0,104580.0,0.35804825]
[1750201943141,0.67472783,104590.0,104580.0,0.36760985]
[1750201943396,0.67472783,104590.0,104580.0,0.37717126]
[1750201943905,0.67472783,104590.0,104580.0,0.36760985]
[1750201944134,0.8659507,104590.0,104580.0,0.36760985]
[1750201945408,0.8659507,104590.0,104580.0,0.35804825]
[1750201946245,0.8659507,104590.0,104580.0,0.41297734]
[1750201946970,0.8659507,104590.0,104580.0,0.36760985]
[1750201947664,0.8659507,104590.0,104580.0,0.37717135]
[1750201948192,0.8634707,104590.0,104580.0,0.36760985]
[1750201948831,0.8634707,104590.0,104580.0,0.37717135]
[1750201949043,0.86358203,104590.0,104580.0,0.37717135]
[1750201949256,0.86358203,104590.0,104580.0,0.43401275]
[1750201950429,0.86358203,104590.0,104580.0,0.34848656]
[1750201951667,0.86358203,104590.0,104580.0,0.35804825]
[1750201953114,0.86358203,104590.0,104580.0,0.34848656]
[1750201956083,0.85402107,104590.0,104580.0,0.34848656]
[1750201957360,0.84446002,104590.0,104580.0,0.13812176]
[1750201957578,0.83489888,104590.0,104580.0,0.13812176]
[1750201958045,0.85776602,104590.0,104580.0,0.13812176]
[1750201958514,0.85776602,104590.0,104580.0,0.32936291]
[1750201958735,0.85776602,104590.0,104580.0,0.33892496]
[1750201964279,0.85776602,104590.0,104580.0,0.39877667]
[1750201964492,0.79894602,104590.0,104580.0,0.40833863]
[1750201966722,0.79894602,104590.0,104580.0,0.41790041]
[1750201966968,0.78894602,104590.0,104580.0,0.41790041]
[1750201967196,0.78894602,104590.0,104580.0,0.40833863]
[1750201970086,0.78894602,104590.0,104580.0,0.41790041]
[1750201971838,0.78894602,104590.0,104580.0,0.40833863]
[1750201972293,0.78894602,104590.0,104580.0,0.4179005]
[1750201974188,0.003,104590.0,104580.0,0.85514616]
[1750201974432,0.003,104590.0,104580.0,0.8796107]
[1750201974651,0.003,104590.0,104580.0,1.17132412]
[1750201975646,0.002,104590.0,104580.0,1.17132412]
[1750201975843,0.00955849,104610.0,104580.0,1.17132412]
[1750201975844,0.00955849,104610.0,104600.0,0.298625]
[1750201976075,0.27038715,104620.0,104610.0,0.234404]
[1750201976298,0.27038715,104620.0,104610.0,0.39484576]
[1750201977946,0.96012187,104630.0,104620.0,0.27112033]
[1750201978190,0.35958952,104630.0,104620.0,0.37691994]
[1750201978400,0.37870367,104630.0,104620.0,0.45406034]
[1750201978618,0.86890358,104630.0,104620.0,0.52709441]
[1750201979059,1.12000562,104630.0,104620.0,0.46449441]
[1750201979302,1.31415538,104630.0,104620.0,0.45493665]
[1750201979525,1.31415538,104630.0,104620.0,0.38190258]
[1750201979745,1.12300562,104630.0,104620.0,0.38190258]
[1750201980190,1.31415538,104630.0,104620.0,0.38190258]
[1750201980412,1.30859854,104630.0,104620.0,0.36278679]
[1750201980670,1.2990416,104630.0,104620.0,0.37234556]
[1750201980873,1.2990416,104630.0,104620.0,0.44640359]
[1750201981093,1.2990416,104630.0,104620.0,0.38190359]
[1750201981336,1.2990416,104630.0,104620.0,0.37234556]
[1750201981618,1.28248457,104630.0,104620.0,0.38190368]
[1750201981831,1.28348457,104630.0,104620.0,0.39146171]
[1750201982274,1.28548457,104630.0,104620.0,0.39146171]
[1750201982494,1.28548457,104630.0,104620.0,0.39146125]
[1750201982712,1.28548457,104630.0,104620.0,0.46468546]
[1750201983386,1.04394001,104630.0,104620.0,0.46468546]
[1750201983607,1.28548457,104630.0,104620.0,0.46468546]
[1750201984054,1.28548457,104630.0,104620.0,0.45512752]
[1750201984964,1.28548457,104630.0,104620.0,0.38190331]
[1750201985914,1.28548457,104630.0,104620.0,0.37234528]
[1750201986141,1.27592736,104630.0,104620.0,0.37234528]
[1750201986367,1.27592736,104630.0,104620.0,0.36278716]
[1750201986814,1.26636988,104630.0,104620.0,0.15250261]
[1750201987069,1.26636988,104630.0,104620.0,0.35322904]
[1750201987536,1.26636988,104630.0,104620.0,0.37234556]
[1750201987775,1.27592727,104630.0,104620.0,0.37234556]
[1750201988023,0.87190385,104630.0,104620.0,0.48827582]
[1750201988241,1.31415556,104630.0,104620.0,0.47871806]
[1750201988456,1.31415556,104630.0,104620.0,0.41400313]
[1750201988894,1.3141562,104630.0,104620.0,0.41400313]
[1750201989123,1.30459926,104630.0,104620.0,0.37234528]
[1750201989625,1.30459926,104630.0,104620.0,0.38190322]
[1750201991388,0.81439926,104630.0,104620.0,0.38190322]
[1750201992475,0.61369202,104630.0,104620.0,0.39146098]
[1750201992693,0.60413427,104630.0,104620.0,0.52037993]
[1750201992917,0.26413372,104630.0,104620.0,0.52037993]
[1750201993159,0.27369084,104630.0,104620.0,0.52037993]
[1750201993374,0.26413372,104630.0,104620.0,0.52037993]
[1750201993830,0.26413362,104630.0,104620.0,0.52037993]
[1750201994052,0.28324777,104630.0,104620.0,0.52037993]
[1750201994234,0.27369065,104630.0,104620.0,0.52037993]
[1750201994451,0.27069065,104630.0,104620.0,0.52037993]
[1750201994893,0.27069065,104630.0,104620.0,0.52437993]
[1750201995791,0.27069065,104630.0,104620.0,0.68249993]
[1750201996116,0.26113362,104630.0,104620.0,0.68249993]
[1750201996339,0.27069065,104630.0,104620.0,0.68249993]
[1750201996586,0.28024777,104630.0,104620.0,0.68249993]
[1750201996814,0.28980507,104630.0,104620.0,0.61878098]
[1750201997909,0.28024777,104630.0,104620.0,0.61878098]
[1750201998116,0.28980507,104630.0,104620.0,0.61878098]
[1750201998999,0.289782,104630.0,104620.0,0.61878098]
[1750201999435,0.48093249,104630.0,104620.0,0.60922322]
[1750201999652,0.48093313,104630.0,104620.0,0.58578107]
[1750202000284,0.4713761,104630.0,104620.0,0.55358107]
[1750202002171,0.28022634,104630.0,104620.0,0.58538052]
[1750202003010,0.4713761,104630.0,104620.0,0.57582276]
[1750202003896,0.4713761,104630.0,104620.0,0.56626491]
[1750202004353,0.4803118,104630.0,104620.0,0.56626491]
[1750202005709,0.4803118,104630.0,104620.0,0.566265]
[1750202006143,0.47075468,104630.0,104620.0,0.566265]
[1750202007024,0.47075468,104630.0,104620.0,0.566145]
[1750202008784,0.70271887,104630.0,104620.0,0.11478261]
[1750202009008,0.70271887,104630.0,104620.0,0.14180176]
[1750202009009,0.78557001,104630.0,104620.0,0.14180176]
[1750202009454,0.78556979,104630.0,104620.0,0.10024176]
[1750202009676,0.78556979,104630.0,104620.0,0.04356]
[1750202010108,0.78556979,104630.0,104620.0,0.04156]
[1750202010539,0.5440483,104630.0,104620.0,0.04156]
[1750202010977,0.78556979,104630.0,104620.0,0.04156]
[1750202012072,0.20072634,104620.0,104610.0,0.20074423]
[1750202012316,0.68376932,104620.0,104610.0,0.33854599]
[1750202013178,0.68376932,104620.0,104610.0,0.34810521]
[1750202013399,0.68376932,104620.0,104610.0,0.35010521]
[1750202013636,0.68376932,104620.0,104610.0,0.13980176]
[1750202013858,0.69332744,104620.0,104610.0,0.14936107]
[1750202014080,0.69332744,104620.0,104610.0,0.13980176]
[1750202014081,0.75782744,104620.0,104610.0,0.13980176]
[1750202014291,0.91574744,104620.0,104610.0,0.13980176]
[1750202014509,0.92468579,104620.0,104610.0,0.13980176]
[1750202014721,0.92468579,104620.0,104610.0,0.14180176]
[1750202014932,0.9475662,104620.0,104610.0,0.14180176]
[1750202015333,0.92468579,104620.0,104610.0,0.20335246]
[1750202015760,0.92468579,104620.0,104610.0,0.39453877]
[1750202015987,0.92228579,104620.0,104610.0,0.4020979]
[1750202016245,0.91334744,104620.0,104610.0,0.4000979]
[1750202016927,0.67190298,104620.0,104610.0,0.4000979]
[1750202017815,0.63900298,104620.0,104610.0,0.40965694]
[1750202018029,0.63900298,104620.0,104610.0,0.41921589]
[1750202018030,0.59068655,104620.0,104610.0,0.41921589]
[1750202018240,0.60024486,104620.0,104610.0,0.41921589]
[1750202018910,0.60024486,104620.0,104610.0,0.4000979]
[1750202019137,0.60024486,104620.0,104610.0,0.40965694]
[1750202019367,0.60024486,104620.0,104610.0,0.4000979]
[1750202021141,0.60024486,104620.0,104610.0,0.3385472]
[1750202022491,0.63054486,104620.0,104610.0,0.32898807]
[1750202022718,0.62098655,104620.0,104610.0,0.13780176]
[1750202023332,0.62098655,104620.0,104610.0,0.32898807]
[1750202023516,0.62098655,104620.0,104610.0,0.34810633]
[1750202023717,0.59068655,104620.0,104610.0,0.38050633]
[1750202023945,0.59068655,104620.0,104610.0,0.37094729]
[1750202024362,0.59068655,104620.0,104610.0,0.33854729]
[1750202024569,0.62118655,104620.0,104610.0,0.33854729]
[1750202027155,0.62118655,104620.0,104610.0,0.35766546]
[1750202027156,0.60024486,104620.0,104610.0,0.35766546]
[1750202027315,0.60024486,104620.0,104610.0,0.38776546]
[1750202027702,0.60024486,104620.0,104610.0,0.39732441]
[1750202027912,0.60024486,104620.0,104610.0,0.37820642]
[1750202028722,0.60024486,104620.0,104610.0,0.33854729]
[1750202028918,0.60024486,104620.0,104610.0,0.13780176]
[1750202029144,0.63134486,104620.0,104610.0,0.13780176]
[1750202029738,0.38974634,104620.0,104610.0,0.13780176]
[1750202029942,0.63134486,104620.0,104610.0,0.33854738]
[1750202030569,0.60024486,104620.0,104610.0,0.33854738]
[1750202030768,0.60024486,104620.0,104610.0,0.37104738]
[1750202033379,0.35864634,104620.0,104610.0,0.3806066]
[1750202033601,0.60024486,104620.0,104610.0,0.3806066]
[1750202034247,0.60024486,104620.0,104610.0,0.44444371]
[1750202034459,0.60024486,104620.0,104610.0,0.45400284]
[1750202035100,0.60980289,104620.0,104610.0,0.46356179]
[1750202035315,0.60980289,104620.0,104610.0,0.45400284]
[1750202035958,0.60980289,104620.0,104610.0,0.46356188]
[1750202036834,0.60980289,104620.0,104610.0,0.48460284]
[1750202037257,0.60024486,104620.0,104610.0,0.48460284]
[1750202038568,0.44232486,104620.0,104610.0,0.48460284]
[1750202038785,0.43276655,104620.0,104610.0,0.4110866]
[1750202038999,0.67434427,104620.0,104610.0,0.3804866]
[1750202040248,0.67434427,104620.0,104610.0,0.37092738]
[1750202040463,0.67434427,104620.0,104610.0,0.3804866]
[1750202041822,0.67434427,104620.0,104610.0,0.37092738]
[1750202042744,0.6972471,104620.0,104610.0,0.37092738]
[1750202042987,0.6972471,104620.0,104610.0,0.3804866]
[1750202043263,0.63898014,104620.0,104610.0,0.3804866]
[1750202044376,0.63898014,104620.0,104610.0,0.17974107]
[1750202044596,0.64792891,104620.0,104610.0,0.17974107]
[1750202045011,0.64792894,104620.0,104610.0,0.17974107]
[1750202045446,0.63898014,104620.0,104610.0,0.17018176]
[1750202045657,0.64792894,104620.0,104610.0,0.17018176]
[1750202045868,0.64792894,104620.0,104610.0,0.37092738]
[1750202046307,0.64792894,104620.0,104610.0,0.17018176]
[1750202047769,0.63898014,104620.0,104610.0,0.17974107]
[1750202047982,0.64792913,104620.0,104610.0,0.17974107]
[1750202048232,0.64792913,104620.0,104610.0,0.38048651]
[1750202048438,0.64792913,104620.0,104610.0,0.37092738]
[1750202049322,0.20011702,104620.0,104610.0,0.37092738]
[1750202049627,0.68329326,104620.0,104610.0,0.17018176]
[1750202050707,0.68329291,104620.0,104610.0,0.17018176]
[1750202050923,0.68329291,104620.0,104610.0,0.37092738]
[1750202051564,0.68329291,104620.0,104610.0,0.17974107]
[1750202053070,0.70620072,104620.0,104610.0,0.17974107]
[1750202053501,0.70620072,104620.0,104610.0,0.17018176]
[1750202055102,0.69725208,104620.0,104610.0,0.17018176]
[1750202055489,0.69725208,104620.0,104610.0,0.17974107]
[1750202055957,0.69725208,104620.0,104610.0,0.37092738]
[1750202056590,0.70620087,104620.0,104610.0,0.17018176]
[1750202060018,0.22302463,104620.0,104610.0,0.37092738]
[1750202060235,0.68329306,104620.0,104610.0,0.44076108]
[1750202060456,0.70620087,104620.0,104610.0,0.44076108]
[1750202060938,0.70620087,104620.0,104610.0,0.38048651]
[1750202061173,0.70620033,104620.0,104610.0,0.38048651]
[1750202062029,0.70620033,104620.0,104610.0,0.3804866]
[1750202062247,0.70620065,104620.0,104610.0,0.3804866]
[1750202062925,0.70620065,104620.0,104610.0,0.39004573]
[1750202064681,0.70620065,104620.0,104610.0,0.3804866]
[1750202065357,0.70620065,104620.0,104610.0,0.39004573]
[1750202066814,0.70620295,104620.0,104610.0,0.3804866]
[1750202067017,0.71576135,104620.0,104610.0,0.39004564]
[1750202067217,0.23258511,104620.0,104610.0,0.17974107]
[1750202067447,0.69285354,104620.0,104610.0,0.17974107]
[1750202067655,0.71576135,104620.0,104610.0,0.17974107]
[1750202067869,0.71576134,104620.0,104610.0,0.17974107]
[1750202068914,0.71576134,104620.0,104610.0,0.13830107]
[1750202069129,0.71576134,104620.0,104610.0,0.17002176]
[1750202069771,0.71576134,104620.0,104610.0,0.17958107]